[Event "Titled Tuesday Blitz April 12 Early 2022"]
[White "Gunina, Valentina"]
[Black "Avazkhonov, Alikhon"]
[WhiteFideId "4167570"]
[BlackFideId "14208504"]
[WhiteElo "2381"]
[BlackElo "1739"]
[Result "1-0"]
[Round "01"]
[TimeControl "180+1"]
[Date "2022.04.13"]
[WhiteClock "0:01:08"]
[BlackClock "0:00:05"]

1. d4 {[%clk 0:03:00]}  d5 {[%clk 0:02:57]} 2. c4 {[%clk 0:02:59]}  e6 {[%clk 0:02:57]} 3. Nf3 {[%clk 0:02:59]}  c6 {[%clk 0:02:57]} 4. e3 {[%clk 0:02:57]}  f5 {[%clk 0:02:57]} 5. g4 {[%clk 0:02:54]}  Nf6 {[%clk 0:02:52]} 6. Ne5 {[%clk 0:02:49]}  Bd6 {[%clk 0:02:43]} 7. gxf5 {[%clk 0:02:42]}  exf5 {[%clk 0:02:42]} 8. Nc3 {[%clk 0:02:42]}  O-O {[%clk 0:02:30]} 9. Qb3 {[%clk 0:02:41]}  Kh8 {[%clk 0:02:27]} 10. Bd2 {[%clk 0:02:37]}  Qe7 {[%clk 0:02:09]} 11. f4 {[%clk 0:02:31]}  Be6 {[%clk 0:02:08]} 12. O-O-O {[%clk 0:02:29]}  Ne4 {[%clk 0:01:57]} 13. Nxe4 {[%clk 0:02:26]}  fxe4 {[%clk 0:01:28]} 14. h4 {[%clk 0:02:26]}  Bxe5 {[%clk 0:00:33]} 15. dxe5 {[%clk 0:02:23]}  Na6 {[%clk 0:00:21]} 16. Qc2 {[%clk 0:01:57]}  Nc5 {[%clk 0:00:19]} 17. Kb1 {[%clk 0:01:54]}  Nd3 {[%clk 0:00:19]} 18. cxd5 {[%clk 0:01:48]}  cxd5 {[%clk 0:00:18]} 19. Bc3 {[%clk 0:01:46]}  Rac8 {[%clk 0:00:15]} 20. Qd2 {[%clk 0:01:30]}  b5 {[%clk 0:00:11]} 21. h5 {[%clk 0:01:29]}  Rc4 {[%clk 0:00:08]} 22. Ka1 {[%clk 0:01:15]}  b4 {[%clk 0:00:08]} 23. Bd4 {[%clk 0:01:13]}  Rfc8 {[%clk 0:00:08]} 24. Bxd3 {[%clk 0:01:13]}  exd3 {[%clk 0:00:09]} 25. Qxd3 {[%clk 0:01:13]}  Qb7 {[%clk 0:00:07]} 26. f5 {[%clk 0:01:11]}  Bf7 {[%clk 0:00:05]} 27. h6 {[%clk 0:01:11]}  Qc7 {[%clk 0:00:02]} 28. e6 {[%clk 0:01:09]}  Rc1+ {[%clk 0:00:01]} 29. Rxc1 {[%clk 0:01:09]}  Qxc1+ {[%clk 0:00:02]} 30. Rxc1 {[%clk 0:01:07]}  Rxc1+ {[%clk 0:00:03]} 31. Qb1 {[%clk 0:01:08]}  Rxb1+ {[%clk 0:00:03]} 32. Kxb1 {[%clk 0:01:08]}  Be8 {[%clk 0:00:04]} 33. Bxg7+ {[%clk 0:01:07]}  Kg8 {[%clk 0:00:05]} 34. f6 {[%clk 0:01:07]}  Bg6+ {[%clk 0:00:05]} 35. Kc1 {[%clk 0:01:08]} 1-0


[Site "https://www.chess.com"]

[Event "Titled Tuesday Blitz April 12 Early 2022"]
[White "Dronavalli, Harika"]
[Black "Dwilewicz, Katarzyna"]
[WhiteFideId "5015197"]
[BlackFideId "1148486"]
[WhiteElo "2382"]
[BlackElo "1907"]
[Result "1-0"]
[Round "01"]
[TimeControl "180+1"]
[Date "2022.04.13"]
[WhiteClock "0:00:40"]
[BlackClock "0:00:01"]

1. d4 {[%clk 0:02:56]}  d5 {[%clk 0:02:58]} 2. c4 {[%clk 0:02:56]}  e6 {[%clk 0:02:58]} 3. Nc3 {[%clk 0:02:55]}  Bb4 {[%clk 0:02:56]} 4. e3 {[%clk 0:02:52]}  Nf6 {[%clk 0:02:52]} 5. Nf3 {[%clk 0:02:52]}  O-O {[%clk 0:02:51]} 6. Bd2 {[%clk 0:02:52]}  c5 {[%clk 0:02:50]} 7. Rc1 {[%clk 0:02:52]}  Nc6 {[%clk 0:02:50]} 8. a3 {[%clk 0:02:50]}  Bxc3 {[%clk 0:02:49]} 9. Bxc3 {[%clk 0:02:50]}  Ne4 {[%clk 0:02:45]} 10. dxc5 {[%clk 0:02:48]}  Nxc3 {[%clk 0:02:18]} 11. Rxc3 {[%clk 0:02:46]}  a5 {[%clk 0:02:10]} 12. cxd5 {[%clk 0:02:45]}  exd5 {[%clk 0:02:09]} 13. Be2 {[%clk 0:02:40]}  Be6 {[%clk 0:01:55]} 14. O-O {[%clk 0:02:39]}  Qf6 {[%clk 0:01:50]} 15. Nd4 {[%clk 0:02:38]}  Rac8 {[%clk 0:01:50]} 16. Qd2 {[%clk 0:02:26]}  Ne5 {[%clk 0:01:40]} 17. Rcc1 {[%clk 0:02:19]}  Nc4 {[%clk 0:01:34]} 18. Bxc4 {[%clk 0:02:19]}  dxc4 {[%clk 0:01:34]} 19. Qxa5 {[%clk 0:02:14]}  Bd5 {[%clk 0:01:26]} 20. f3 {[%clk 0:02:08]}  Rfe8 {[%clk 0:01:24]} 21. Rfe1 {[%clk 0:01:59]}  Re5 {[%clk 0:01:13]} 22. e4 {[%clk 0:01:51]}  Rh5 {[%clk 0:00:54]} 23. Qd2 {[%clk 0:01:47]}  Be6 {[%clk 0:00:43]} 24. Nxe6 {[%clk 0:01:46]}  Qxe6 {[%clk 0:00:43]} 25. Red1 {[%clk 0:01:41]}  Rhxc5 {[%clk 0:00:38]} 26. Qd8+ {[%clk 0:01:37]}  Qe8 {[%clk 0:00:38]} 27. Qxe8+ {[%clk 0:01:32]}  Rxe8 {[%clk 0:00:39]} 28. Kf2 {[%clk 0:01:29]}  Kf8 {[%clk 0:00:38]} 29. Rd6 {[%clk 0:01:27]}  Ke7 {[%clk 0:00:31]} 30. Rb6 {[%clk 0:01:27]}  Rc7 {[%clk 0:00:31]} 31. Rb4 {[%clk 0:01:27]}  Rec8 {[%clk 0:00:31]} 32. Rc3 {[%clk 0:01:27]}  Rd8 {[%clk 0:00:29]} 33. Ke3 {[%clk 0:01:26]}  Rdc8 {[%clk 0:00:22]} 34. h4 {[%clk 0:01:25]}  h5 {[%clk 0:00:21]} 35. a4 {[%clk 0:01:20]}  g6 {[%clk 0:00:21]} 36. g3 {[%clk 0:01:12]}  f6 {[%clk 0:00:20]} 37. Rb6 {[%clk 0:01:10]}  Rd7 {[%clk 0:00:18]} 38. a5 {[%clk 0:01:03]}  Rc5 {[%clk 0:00:16]} 39. Rb4 {[%clk 0:00:58]}  Rxa5 {[%clk 0:00:12]} 40. Rbxc4 {[%clk 0:00:57]}  Ra2 {[%clk 0:00:11]} 41. Rb4 {[%clk 0:00:57]}  Ra1 {[%clk 0:00:11]} 42. Rd3 {[%clk 0:00:52]}  Re1+ {[%clk 0:00:11]} 43. Kd2 {[%clk 0:00:51]}  Rd1+ {[%clk 0:00:09]} 44. Kxd1 {[%clk 0:00:51]}  Rxd3+ {[%clk 0:00:09]} 45. Ke2 {[%clk 0:00:52]}  Rd7 {[%clk 0:00:10]} 46. Rb6 {[%clk 0:00:52]}  Rc7 {[%clk 0:00:10]} 47. Kd3 {[%clk 0:00:52]}  Kf7 {[%clk 0:00:07]} 48. Ke3 {[%clk 0:00:52]}  Ke7 {[%clk 0:00:08]} 49. f4 {[%clk 0:00:53]}  Kf7 {[%clk 0:00:08]} 50. e5 {[%clk 0:00:53]}  fxe5 {[%clk 0:00:08]} 51. fxe5 {[%clk 0:00:54]}  Kg7 {[%clk 0:00:07]} 52. Kd4 {[%clk 0:00:54]}  Kf7 {[%clk 0:00:07]} 53. Kd5 {[%clk 0:00:53]}  Rd7+ {[%clk 0:00:07]} 54. Rd6 {[%clk 0:00:53]}  Rc7 {[%clk 0:00:08]} 55. Rf6+ {[%clk 0:00:53]}  Kg7 {[%clk 0:00:08]} 56. Rb6 {[%clk 0:00:54]}  Kf7 {[%clk 0:00:08]} 57. Rf6+ {[%clk 0:00:46]}  Kg7 {[%clk 0:00:08]} 58. Rf2 {[%clk 0:00:45]}  Rc1 {[%clk 0:00:05]} 59. e6 {[%clk 0:00:45]}  Rd1+ {[%clk 0:00:06]} 60. Ke5 {[%clk 0:00:45]}  Re1+ {[%clk 0:00:06]} 61. Kd6 {[%clk 0:00:46]}  b5 {[%clk 0:00:04]} 62. e7 {[%clk 0:00:46]}  b4 {[%clk 0:00:05]} 63. Kd7 {[%clk 0:00:46]}  Rd1+ {[%clk 0:00:05]} 64. Kc7 {[%clk 0:00:42]}  Rc1+ {[%clk 0:00:06]} 65. Kd8 {[%clk 0:00:42]}  Rd1+ {[%clk 0:00:06]} 66. Ke8 {[%clk 0:00:42]}  b3 {[%clk 0:00:05]} 67. Rf7+ {[%clk 0:00:40]}  Kg8 {[%clk 0:00:03]} 68. Rf3 {[%clk 0:00:41]}  Rd2 {[%clk 0:00:01]} 69. Rxb3 {[%clk 0:00:41]}  Kg7 {[%clk 0:00:02]} 70. Re3 {[%clk 0:00:41]}  Rd5 {[%clk 0:00:01]} 71. b4 {[%clk 0:00:41]}  Kf6 {[%clk 0:00:01]} 72. b5 {[%clk 0:00:40]} 1-0


[Site "https://www.chess.com"]

[Event "Titled Tuesday Blitz April 12 Early 2022"]
[White "Hasangatin, Ramil"]
[Black "Khamdamova, Afruza"]
[WhiteFideId "4122160"]
[BlackFideId "14210444"]
[WhiteElo "2375"]
[BlackElo "1660"]
[Result "0-1"]
[Round "01"]
[TimeControl "180+1"]
[Date "2022.04.13"]
[WhiteClock "0:00:17"]
[BlackClock "0:00:36"]

1. e4 {[%clk 0:02:57]}  e5 {[%clk 0:02:59]} 2. Nf3 {[%clk 0:02:55]}  Nf6 {[%clk 0:03:00]} 3. d3 {[%clk 0:02:54]}  Nc6 {[%clk 0:02:59]} 4. c3 {[%clk 0:02:53]}  d5 {[%clk 0:02:59]} 5. Nbd2 {[%clk 0:02:53]}  Bc5 {[%clk 0:02:57]} 6. Be2 {[%clk 0:02:53]}  O-O {[%clk 0:02:57]} 7. b4 {[%clk 0:02:52]}  Bb6 {[%clk 0:02:53]} 8. O-O {[%clk 0:02:51]}  a6 {[%clk 0:02:50]} 9. a3 {[%clk 0:02:50]}  dxe4 {[%clk 0:02:47]} 10. dxe4 {[%clk 0:02:50]}  Bg4 {[%clk 0:02:38]} 11. Qc2 {[%clk 0:02:49]}  Qe7 {[%clk 0:02:32]} 12. Nc4 {[%clk 0:02:49]}  Ba7 {[%clk 0:02:25]} 13. Ne3 {[%clk 0:02:49]}  Be6 {[%clk 0:02:18]} 14. Ng5 {[%clk 0:02:46]}  Bd7 {[%clk 0:01:53]} 15. Nd5 {[%clk 0:02:44]}  Qd8 {[%clk 0:01:52]} 16. Rd1 {[%clk 0:02:39]}  h6 {[%clk 0:01:51]} 17. Nf3 {[%clk 0:02:33]}  Ng4 {[%clk 0:01:35]} 18. Rf1 {[%clk 0:02:32]}  f5 {[%clk 0:01:34]} 19. h3 {[%clk 0:02:17]}  fxe4 {[%clk 0:01:30]} 20. hxg4 {[%clk 0:02:10]}  exf3 {[%clk 0:01:30]} 21. Bxf3 {[%clk 0:02:10]}  Qh4 {[%clk 0:01:25]} 22. Qe4 {[%clk 0:02:05]}  Rae8 {[%clk 0:01:10]} 23. Be3 {[%clk 0:02:03]}  Bxe3 {[%clk 0:01:09]} 24. Qxe3 {[%clk 0:02:00]}  Bxg4 {[%clk 0:01:03]} 25. Bxg4 {[%clk 0:01:49]}  Qxg4 {[%clk 0:01:02]} 26. Nxc7 {[%clk 0:01:49]}  Re7 {[%clk 0:01:01]} 27. Nd5 {[%clk 0:01:50]}  Re6 {[%clk 0:01:00]} 28. Qg3 {[%clk 0:01:43]}  Qxg3 {[%clk 0:00:59]} 29. fxg3 {[%clk 0:01:43]}  Rg6 {[%clk 0:00:58]} 30. Kh2 {[%clk 0:01:29]}  Rd6 {[%clk 0:00:54]} 31. c4 {[%clk 0:01:18]}  b5 {[%clk 0:00:53]} 32. cxb5 {[%clk 0:01:13]}  axb5 {[%clk 0:00:52]} 33. Nc3 {[%clk 0:01:14]}  Nd4 {[%clk 0:00:49]} 34. Rxf8+ {[%clk 0:01:03]}  Kxf8 {[%clk 0:00:49]} 35. Re1 {[%clk 0:01:04]}  Re6 {[%clk 0:00:48]} 36. g4 {[%clk 0:01:01]}  Ke7 {[%clk 0:00:48]} 37. Ne4 {[%clk 0:00:54]}  Rg6 {[%clk 0:00:47]} 38. Kh3 {[%clk 0:00:37]}  Ra6 {[%clk 0:00:45]} 39. Nc5 {[%clk 0:00:33]}  Rxa3+ {[%clk 0:00:45]} 40. g3 {[%clk 0:00:33]}  Nf3 {[%clk 0:00:45]} 41. Rh1 {[%clk 0:00:25]}  Ra2 {[%clk 0:00:44]} 42. g5 {[%clk 0:00:20]}  Nxg5+ {[%clk 0:00:44]} 43. Kg4 {[%clk 0:00:20]}  Rb2 {[%clk 0:00:43]} 44. Nd3 {[%clk 0:00:18]}  Re2 {[%clk 0:00:43]} 45. Kf5 {[%clk 0:00:16]}  Kf7 {[%clk 0:00:41]} 46. Ra1 {[%clk 0:00:15]}  g6+ {[%clk 0:00:41]} 47. Kg4 {[%clk 0:00:14]}  Re4+ {[%clk 0:00:41]} 48. Nf4 {[%clk 0:00:12]}  exf4 {[%clk 0:00:41]} 49. gxf4 {[%clk 0:00:13]}  Ne6 {[%clk 0:00:41]} 50. Ra7+ {[%clk 0:00:14]}  Kf6 {[%clk 0:00:41]} 51. Kg3 {[%clk 0:00:15]}  Rxf4 {[%clk 0:00:41]} 52. Rb7 {[%clk 0:00:14]}  Rxb4 {[%clk 0:00:41]} 53. Rb8 {[%clk 0:00:15]}  Rb3+ {[%clk 0:00:41]} 54. Kg4 {[%clk 0:00:16]}  h5+ {[%clk 0:00:40]} 55. Kh4 {[%clk 0:00:16]}  Rb4+ {[%clk 0:00:40]} 56. Kg3 {[%clk 0:00:16]}  Ke5 {[%clk 0:00:40]} 57. Re8 {[%clk 0:00:15]}  g5 {[%clk 0:00:40]} 58. Kf3 {[%clk 0:00:16]}  Rb3+ {[%clk 0:00:40]} 59. Ke2 {[%clk 0:00:16]}  h4 {[%clk 0:00:40]} 60. Kf2 {[%clk 0:00:16]}  g4 {[%clk 0:00:39]} 61. Kg2 {[%clk 0:00:17]}  Rb2+ {[%clk 0:00:39]} 62. Kg1 {[%clk 0:00:17]}  h3 {[%clk 0:00:38]} 63. Rg8 {[%clk 0:00:18]}  Kf4 {[%clk 0:00:38]} 64. Kh1 {[%clk 0:00:17]}  Kg3 {[%clk 0:00:37]} 65. Rf8 {[%clk 0:00:17]}  Rb1+ {[%clk 0:00:37]} 66. Rf1 {[%clk 0:00:17]}  Rxf1# {[%clk 0:00:36]} 0-1


[Site "https://www.chess.com"]

[Event "Titled Tuesday Blitz April 12 Early 2022"]
[White "Hess, Robert"]
[Black "Prohorov, Olexandr"]
[WhiteFideId "2022036"]
[BlackFideId "14105578"]
[WhiteElo "2557"]
[BlackElo "1993"]
[Result "1-0"]
[Round "01"]
[TimeControl "180+1"]
[Date "2022.04.13"]
[WhiteClock "0:00:07"]
[BlackClock "0:00:02"]

1. b3 {[%clk 0:03:00]}  d5 {[%clk 0:02:35]} 2. Bb2 {[%clk 0:03:00]}  Nc6 {[%clk 0:02:35]} 3. e3 {[%clk 0:03:01]}  e5 {[%clk 0:02:35]} 4. d3 {[%clk 0:03:01]}  Bd6 {[%clk 0:02:35]} 5. Nd2 {[%clk 0:03:02]}  Qe7 {[%clk 0:02:36]} 6. a3 {[%clk 0:03:02]}  Nf6 {[%clk 0:02:35]} 7. Ne2 {[%clk 0:03:02]}  O-O {[%clk 0:02:34]} 8. h3 {[%clk 0:03:03]}  a5 {[%clk 0:02:33]} 9. g4 {[%clk 0:03:02]}  h6 {[%clk 0:02:31]} 10. Ng3 {[%clk 0:02:57]}  Re8 {[%clk 0:02:25]} 11. e4 {[%clk 0:02:52]}  g6 {[%clk 0:02:17]} 12. Bg2 {[%clk 0:02:18]}  Be6 {[%clk 0:02:14]} 13. Nf3 {[%clk 0:02:12]}  a4 {[%clk 0:02:06]} 14. bxa4 {[%clk 0:02:04]}  dxe4 {[%clk 0:02:03]} 15. dxe4 {[%clk 0:02:01]}  Bc4 {[%clk 0:02:00]} 16. Nd2 {[%clk 0:01:54]}  Ba6 {[%clk 0:01:58]} 17. h4 {[%clk 0:01:39]}  Nd7 {[%clk 0:01:43]} 18. h5 {[%clk 0:01:36]}  Kg7 {[%clk 0:01:29]} 19. f4 {[%clk 0:01:26]}  Nd4 {[%clk 0:01:17]} 20. Nf3 {[%clk 0:01:02]}  c5 {[%clk 0:01:13]} 21. hxg6 {[%clk 0:01:01]}  fxg6 {[%clk 0:01:13]} 22. f5 {[%clk 0:00:58]}  Nxf3+ {[%clk 0:01:09]} 23. Qxf3 {[%clk 0:00:54]}  Rf8 {[%clk 0:00:57]} 24. Rd1 {[%clk 0:00:38]}  Bc7 {[%clk 0:00:55]} 25. Qe3 {[%clk 0:00:28]}  g5 {[%clk 0:00:36]} 26. f6+ {[%clk 0:00:21]}  Rxf6 {[%clk 0:00:20]} 27. Nh5+ {[%clk 0:00:22]}  Kg6 {[%clk 0:00:18]} 28. Rxd7 {[%clk 0:00:16]}  Qxd7 {[%clk 0:00:14]} 29. Nxf6 {[%clk 0:00:17]}  Ba5+ {[%clk 0:00:08]} 30. Bc3 {[%clk 0:00:13]}  Bxc3+ {[%clk 0:00:08]} 31. Qxc3 {[%clk 0:00:14]}  Kxf6 {[%clk 0:00:05]} 32. Rxh6+ {[%clk 0:00:13]}  Kg7 {[%clk 0:00:06]} 33. Rh5 {[%clk 0:00:08]}  Qd4 {[%clk 0:00:02]} 34. Qxd4 {[%clk 0:00:08]}  cxd4 {[%clk 0:00:02]} 35. Rxg5+ {[%clk 0:00:09]}  Kf6 {[%clk 0:00:03]} 36. Rf5+ {[%clk 0:00:09]}  Ke6 {[%clk 0:00:04]} 37. g5 {[%clk 0:00:09]}  Rh8 {[%clk 0:00:02]} 38. Kf2 {[%clk 0:00:07]}  Rh4 {[%clk 0:00:02]} 39. Kg3 {[%clk 0:00:06]}  Rh5 {[%clk 0:00:02]} 40. Bf3 {[%clk 0:00:07]}  Rh8 {[%clk 0:00:01]} 41. Bg4 {[%clk 0:00:07]}  Rc8 {[%clk 0:00:02]} 42. Rf3+ {[%clk 0:00:06]}  Kd6 {[%clk 0:00:02]} 43. Bxc8 {[%clk 0:00:07]} 1-0


[Site "https://www.chess.com"]

[Event "Titled Tuesday Blitz April 12 Early 2022"]
[White "Ibadov, Dashgyn"]
[Black "Caruana, Fabiano"]
[WhiteFideId "24107514"]
[BlackFideId "2020009"]
[WhiteElo "2138"]
[BlackElo "2744"]
[Result "0-1"]
[Round "01"]
[TimeControl "180+1"]
[Date "2022.04.12"]
[WhiteClock "0:00:07"]
[BlackClock "0:00:22"]

1. e4 {[%clk 0:03:00]}  c6 {[%clk 0:02:59]} 2. d4 {[%clk 0:03:00]}  d5 {[%clk 0:02:59]} 3. e5 {[%clk 0:03:01]}  Bf5 {[%clk 0:02:59]} 4. Nf3 {[%clk 0:03:01]}  e6 {[%clk 0:02:59]} 5. Be2 {[%clk 0:03:02]}  Ne7 {[%clk 0:02:59]} 6. O-O {[%clk 0:03:02]}  h6 {[%clk 0:02:59]} 7. Nbd2 {[%clk 0:02:57]}  Nd7 {[%clk 0:02:59]} 8. a4 {[%clk 0:02:56]}  a5 {[%clk 0:02:59]} 9. Nb3 {[%clk 0:02:55]}  Nc8 {[%clk 0:02:58]} 10. Be3 {[%clk 0:02:52]}  Ncb6 {[%clk 0:02:55]} 11. Ne1 {[%clk 0:02:35]}  Nc4 {[%clk 0:02:53]} 12. Bc1 {[%clk 0:02:23]}  Be7 {[%clk 0:02:51]} 13. Bd3 {[%clk 0:02:19]}  Bxd3 {[%clk 0:02:40]} 14. Nxd3 {[%clk 0:02:20]}  O-O {[%clk 0:02:39]} 15. f4 {[%clk 0:02:18]}  f5 {[%clk 0:02:38]} 16. exf6 {[%clk 0:02:13]}  Nxf6 {[%clk 0:02:37]} 17. Ne5 {[%clk 0:02:11]}  Nxe5 {[%clk 0:02:34]} 18. fxe5 {[%clk 0:02:09]}  Ne4 {[%clk 0:02:34]} 19. Be3 {[%clk 0:02:08]}  Rxf1+ {[%clk 0:02:33]} 20. Qxf1 {[%clk 0:02:09]}  Qe8 {[%clk 0:02:30]} 21. Qd3 {[%clk 0:02:02]}  Qh5 {[%clk 0:02:28]} 22. Rf1 {[%clk 0:01:59]}  Bg5 {[%clk 0:02:17]} 23. Nd2 {[%clk 0:01:49]}  Bxe3+ {[%clk 0:02:11]} 24. Qxe3 {[%clk 0:01:50]}  Qg5 {[%clk 0:02:09]} 25. Qxg5 {[%clk 0:01:47]}  Nxg5 {[%clk 0:02:10]} 26. h4 {[%clk 0:01:43]}  Nf7 {[%clk 0:02:09]} 27. Rf3 {[%clk 0:01:35]}  Kf8 {[%clk 0:01:59]} 28. g4 {[%clk 0:01:30]}  Ke7 {[%clk 0:01:58]} 29. Rb3 {[%clk 0:01:19]}  Rb8 {[%clk 0:01:53]} 30. c4 {[%clk 0:01:19]}  Nh8 {[%clk 0:01:42]} 31. Kg2 {[%clk 0:01:15]}  Ng6 {[%clk 0:01:29]} 32. Kg3 {[%clk 0:01:15]}  Kd7 {[%clk 0:01:29]} 33. c5 {[%clk 0:01:10]}  Kc7 {[%clk 0:01:21]} 34. Rf3 {[%clk 0:01:09]}  Rf8 {[%clk 0:01:18]} 35. Rxf8 {[%clk 0:01:07]}  Nxf8 {[%clk 0:01:19]} 36. Nb3 {[%clk 0:01:07]}  Nd7 {[%clk 0:01:09]} 37. Kf4 {[%clk 0:00:38]}  b6 {[%clk 0:01:07]} 38. cxb6+ {[%clk 0:00:35]}  Kxb6 {[%clk 0:01:06]} 39. g5 {[%clk 0:00:27]}  c5 {[%clk 0:00:50]} 40. dxc5+ {[%clk 0:00:27]}  Nxc5 {[%clk 0:00:51]} 41. Nd4 {[%clk 0:00:27]}  Kc7 {[%clk 0:00:36]} 42. gxh6 {[%clk 0:00:25]}  gxh6 {[%clk 0:00:36]} 43. Kg4 {[%clk 0:00:21]}  Kd7 {[%clk 0:00:37]} 44. Kh5 {[%clk 0:00:20]}  Nd3 {[%clk 0:00:33]} 45. Kxh6 {[%clk 0:00:11]}  Nxe5 {[%clk 0:00:34]} 46. Kg7 {[%clk 0:00:10]}  Ng4 {[%clk 0:00:34]} 47. h5 {[%clk 0:00:07]}  e5 {[%clk 0:00:34]} 48. Nf3 {[%clk 0:00:07]}  d4 {[%clk 0:00:22]} 0-1


[Site "https://www.chess.com"]

[Event "Titled Tuesday Blitz April 12 Early 2022"]
[White "Jobava, Baadur"]
[Black "Dounis, Alexandros"]
[WhiteFideId "13601520"]
[BlackFideId "4213238"]
[WhiteElo "2617"]
[BlackElo "2204"]
[Result "1-0"]
[Round "01"]
[TimeControl "180+1"]
[Date "2022.04.12"]
[WhiteClock "0:01:40"]
[BlackClock "0:01:10"]

1. b3 {[%clk 0:03:00]}  e5 {[%clk 0:02:59]} 2. Bb2 {[%clk 0:03:01]}  Nc6 {[%clk 0:02:59]} 3. Nf3 {[%clk 0:03:01]}  e4 {[%clk 0:02:57]} 4. Nd4 {[%clk 0:03:01]}  Nf6 {[%clk 0:02:54]} 5. e3 {[%clk 0:03:01]}  Bd6 {[%clk 0:02:54]} 6. Nf5 {[%clk 0:02:56]}  Bf8 {[%clk 0:02:51]} 7. Ng3 {[%clk 0:02:51]}  d5 {[%clk 0:02:49]} 8. d3 {[%clk 0:02:51]}  Bb4+ {[%clk 0:02:44]} 9. Nd2 {[%clk 0:02:48]}  Qe7 {[%clk 0:02:36]} 10. a3 {[%clk 0:02:48]}  Bxd2+ {[%clk 0:02:20]} 11. Qxd2 {[%clk 0:02:48]}  O-O {[%clk 0:02:12]} 12. O-O-O {[%clk 0:02:47]}  Rd8 {[%clk 0:02:10]} 13. Be2 {[%clk 0:02:37]}  a5 {[%clk 0:02:06]} 14. dxe4 {[%clk 0:02:36]}  dxe4 {[%clk 0:02:04]} 15. Qc3 {[%clk 0:02:36]}  Be6 {[%clk 0:02:00]} 16. Nxe4 {[%clk 0:02:32]}  Ne8 {[%clk 0:01:44]} 17. Nc5 {[%clk 0:02:23]}  Bc8 {[%clk 0:01:28]} 18. Rxd8 {[%clk 0:02:21]}  Nxd8 {[%clk 0:01:28]} 19. Rd1 {[%clk 0:02:22]}  b6 {[%clk 0:01:27]} 20. Bf3 {[%clk 0:02:05]}  Rb8 {[%clk 0:01:21]} 21. Qe5 {[%clk 0:02:01]}  Ne6 {[%clk 0:01:13]} 22. Nxe6 {[%clk 0:01:47]}  Bxe6 {[%clk 0:01:13]} 23. Bc6 {[%clk 0:01:45]}  Nf6 {[%clk 0:01:10]} 24. Rd7 {[%clk 0:01:40]} 1-0


[Site "https://www.chess.com"]

[Event "Titled Tuesday Blitz April 12 Early 2022"]
[White "Johnson, Ben"]
[Black "Stevens, Christian"]
[WhiteFideId "2010917"]
[BlackFideId "2604450"]
[WhiteElo "2107"]
[BlackElo "2549"]
[Result "1-0"]
[Round "01"]
[TimeControl "180+1"]
[Date "2022.04.13"]
[WhiteClock "0:00:04"]
[BlackClock "0:00:01"]

1. Nf3 {[%clk 0:02:41]}  c5 {[%clk 0:02:59]} 2. c4 {[%clk 0:02:40]}  b6 {[%clk 0:02:58]} 3. g3 {[%clk 0:02:40]}  Bb7 {[%clk 0:02:57]} 4. Bg2 {[%clk 0:02:40]}  Nf6 {[%clk 0:02:57]} 5. O-O {[%clk 0:02:41]}  e6 {[%clk 0:02:57]} 6. b3 {[%clk 0:02:38]}  Bd6 {[%clk 0:02:56]} 7. Bb2 {[%clk 0:02:37]}  O-O {[%clk 0:02:57]} 8. d4 {[%clk 0:02:34]}  Nc6 {[%clk 0:02:56]} 9. dxc5 {[%clk 0:02:10]}  Bxc5 {[%clk 0:02:56]} 10. Nc3 {[%clk 0:02:10]}  a6 {[%clk 0:02:46]} 11. a3 {[%clk 0:02:00]}  Rc8 {[%clk 0:02:43]} 12. Qc2 {[%clk 0:01:53]}  Be7 {[%clk 0:01:46]} 13. Rad1 {[%clk 0:01:51]}  h6 {[%clk 0:01:27]} 14. Ne4 {[%clk 0:01:35]}  d5 {[%clk 0:00:52]} 15. Nxf6+ {[%clk 0:01:18]}  Bxf6 {[%clk 0:00:50]} 16. Bxf6 {[%clk 0:00:59]}  Qxf6 {[%clk 0:00:48]} 17. Qd3 {[%clk 0:00:37]}  dxc4 {[%clk 0:00:45]} 18. bxc4 {[%clk 0:00:37]}  Na5 {[%clk 0:00:41]} 19. Rc1 {[%clk 0:00:33]}  Rfd8 {[%clk 0:00:39]} 20. Qb1 {[%clk 0:00:20]}  Nxc4 {[%clk 0:00:37]} 21. Qb4 {[%clk 0:00:19]}  b5 {[%clk 0:00:17]} 22. a4 {[%clk 0:00:19]}  Bc6 {[%clk 0:00:16]} 23. axb5 {[%clk 0:00:15]}  axb5 {[%clk 0:00:17]} 24. Rfd1 {[%clk 0:00:13]}  Be8 {[%clk 0:00:13]} 25. e3 {[%clk 0:00:12]}  Qb2 {[%clk 0:00:12]} 26. Qxb2 {[%clk 0:00:09]}  Nxb2 {[%clk 0:00:12]} 27. Rxd8 {[%clk 0:00:07]}  Rxd8 {[%clk 0:00:08]} 28. Rb1 {[%clk 0:00:06]}  Nc4 {[%clk 0:00:07]} 29. Nd4 {[%clk 0:00:07]}  Nd6 {[%clk 0:00:07]} 30. Bc6 {[%clk 0:00:05]}  Kf8 {[%clk 0:00:07]} 31. Bxe8 {[%clk 0:00:05]}  Kxe8 {[%clk 0:00:07]} 32. Nxb5 {[%clk 0:00:06]}  Ne4 {[%clk 0:00:05]} 33. Rb2 {[%clk 0:00:04]}  Ke7 {[%clk 0:00:06]} 34. Nd4 {[%clk 0:00:03]}  Kf6 {[%clk 0:00:05]} 35. Kg2 {[%clk 0:00:03]}  Nc5 {[%clk 0:00:05]} 36. h3 {[%clk 0:00:04]}  Nd3 {[%clk 0:00:05]} 37. Ra2 {[%clk 0:00:04]}  Ne1+ {[%clk 0:00:06]} 38. Kf1 {[%clk 0:00:03]}  Nd3 {[%clk 0:00:06]} 39. Ra3 {[%clk 0:00:03]}  Ne5 {[%clk 0:00:06]} 40. Ra2 {[%clk 0:00:04]}  Rc8 {[%clk 0:00:06]} 41. Kg2 {[%clk 0:00:04]}  Rc1 {[%clk 0:00:06]} 42. Re2 {[%clk 0:00:05]}  Nd3 {[%clk 0:00:07]} 43. Rd2 {[%clk 0:00:05]}  Nb4 {[%clk 0:00:06]} 44. Nf3 {[%clk 0:00:05]}  g5 {[%clk 0:00:05]} 45. g4 {[%clk 0:00:05]}  Nd5 {[%clk 0:00:05]} 46. h4 {[%clk 0:00:05]}  Nc3 {[%clk 0:00:05]} 47. hxg5+ {[%clk 0:00:05]}  hxg5 {[%clk 0:00:06]} 48. Rd3 {[%clk 0:00:06]}  Ne4 {[%clk 0:00:06]} 49. Rd4 {[%clk 0:00:06]}  Nc5 {[%clk 0:00:06]} 50. Rd2 {[%clk 0:00:06]}  Rc4 {[%clk 0:00:06]} 51. Ra2 {[%clk 0:00:06]}  Rxg4+ {[%clk 0:00:05]} 52. Kh3 {[%clk 0:00:07]}  Rb4 {[%clk 0:00:06]} 53. Kg3 {[%clk 0:00:08]}  Ne4+ {[%clk 0:00:04]} 54. Kg4 {[%clk 0:00:06]}  Nxf2+ {[%clk 0:00:04]} 55. Kg3 {[%clk 0:00:05]}  Ne4+ {[%clk 0:00:04]} 56. Kg2 {[%clk 0:00:03]}  Nd6 {[%clk 0:00:05]} 57. Rf2 {[%clk 0:00:03]}  Kg6 {[%clk 0:00:04]} 58. Kg3 {[%clk 0:00:03]}  Nf5+ {[%clk 0:00:04]} 59. Kg2 {[%clk 0:00:03]}  f6 {[%clk 0:00:04]} 60. Re2 {[%clk 0:00:03]}  Re4 {[%clk 0:00:04]} 61. Kf2 {[%clk 0:00:03]}  g4 {[%clk 0:00:04]} 62. Nd2 {[%clk 0:00:02]}  Ra4 {[%clk 0:00:04]} 63. Re1 {[%clk 0:00:03]}  Kg5 {[%clk 0:00:04]} 64. Ke2 {[%clk 0:00:03]}  Ra3 {[%clk 0:00:03]} 65. Rg1 {[%clk 0:00:04]}  Rxe3+ {[%clk 0:00:03]} 66. Kd1 {[%clk 0:00:03]}  Re5 {[%clk 0:00:03]} 67. Nf3+ {[%clk 0:00:02]}  Kf4 {[%clk 0:00:03]} 68. Nxe5 {[%clk 0:00:03]}  Kxe5 {[%clk 0:00:01]} 69. Rf1 {[%clk 0:00:04]} 1-0


[Site "https://www.chess.com"]